fUSD/lending_fUSD_20240502
["ID","MTS","AMOUNT","RATE_DAILY","PERIOD"]
[325294988,1714684266407,-500.0,0.00030684,2]
[325294989,1714684266415,-500.0,0.00030684,2]
[325294990,1714684266424,-500.0,0.00030684,2]
[325294991,1714684266433,-500.0,0.00030684,2]
[325294992,1714684266442,-500.0,0.00030684,2]
[325294993,1714684266451,-500.0,0.00030684,2]
[325294994,1714684266460,-482.79018551,0.00030684,2]
[325294995,1714684266469,-552.56116492,0.00030684,2]
[325294996,1714684266478,-500.0,0.00030684,2]
[325294997,1714684266488,-500.0,0.00030684,2]
[325294998,1714684266497,-500.0,0.00030684,2]
[325294999,1714684266506,-500.0,0.00030684,2]
[325295000,1714684266515,-500.0,0.00030684,2]
[325295001,1714684266525,-500.0,0.00030684,2]
[325295002,1714684266534,-500.0,0.00030684,2]
[325295003,1714684266543,-823.08,0.00030684,2]
[325295004,1714684266551,-500.0,0.00030684,2]
[325295005,1714684266560,-500.0,0.00030684,2]
[325295006,1714684266570,-500.0,0.00030684,2]
[325295007,1714684266579,-500.0,0.00030684,2]
[325295008,1714684266589,-500.0,0.00030684,2]
[325295009,1714684266598,-500.0,0.00030684,2]
[325295010,1714684266608,-533.04,0.00030684,2]
[325295011,1714684266617,-500.0,0.00030684,2]
[325295012,1714684266626,-500.0,0.00030684,2]
[325295013,1714684266635,-540.03,0.00030684,2]
[325295014,1714684266645,-500.0,0.00030684,2]
[325295015,1714684266654,-500.0,0.00030684,2]
[325295016,1714684266663,-500.0,0.00030684,2]
[325295017,1714684266672,-500.0,0.00030684,2]
[325295018,1714684266682,-500.0,0.00030684,2]
[325295019,1714684266691,-500.0,0.00030684,2]
[325295020,1714684266700,-1155.82,0.00030684,2]
[325295021,1714684266710,-582.09,0.00030684,2]
[325295022,1714684266720,-891.56,0.00030684,2]
[325295023,1714684266729,-500.0,0.00030684,2]
[325295024,1714684266740,-1121.6,0.00030684,2]
[325295025,1714684266749,-500.0,0.00030684,2]
[325295026,1714684266759,-794.68,0.00030684,2]
[325295027,1714684266768,-500.0,0.00030684,2]
[325295028,1714684266779,-500.0,0.00030684,2]
[325295029,1714684266789,-854.77,0.00030684,2]
[325295030,1714684266798,-500.0,0.00030684,2]
[325295031,1714684266808,-500.0,0.00030684,2]
[325295032,1714684266818,-500.0,0.00030684,2]
[325295033,1714684266827,-500.0,0.00030684,2]
[325295034,1714684266837,-540.32,0.00030684,2]
[325295035,1714684266847,-500.0,0.00030684,2]
[325295036,1714684266856,-735.6,0.00030684,2]
[325295037,1714684266866,-1006.44,0.00030684,2]
[325295038,1714684266876,-639.66,0.00030684,2]
[325295039,1714684266886,-500.0,0.00030684,2]
[325295040,1714684266895,-500.0,0.00030684,2]
[325295041,1714684266905,-500.0,0.00030684,2]
[325295042,1714684266914,-500.0,0.00030684,2]
[325295043,1714684266924,-500.0,0.00030684,2]
[325295044,1714684266933,-706.53,0.00030684,2]
[325295045,1714684266943,-500.0,0.00030684,2]
[325295046,1714684266952,-500.0,0.00030684,2]
[325295047,1714684266962,-941.86,0.00030684,2]
[325295048,1714684266972,-500.0,0.00030684,2]
[325295049,1714684266981,-607.15,0.00030684,2]
[325295050,1714684266991,-500.0,0.00030684,2]
[325295051,1714684267000,-500.0,0.00030684,2]
[325295052,1714684267010,-500.0,0.00030684,2]
[325295053,1714684267020,-500.0,0.00030684,2]
[325295054,1714684267029,-500.0,0.00030684,2]
[325295055,1714684267040,-500.0,0.00030684,2]
[325295056,1714684267049,-500.0,0.00030684,2]
[325295057,1714684267059,-500.0,0.00030684,2]
[325295058,1714684267069,-771.92,0.00030684,2]
[325295059,1714684267078,-513.24,0.00030684,2]
[325295060,1714684267088,-1060.77,0.00030684,2]
[325295061,1714684267098,-723.45,0.00030684,2]
[325295062,1714684267107,-500.0,0.00030684,2]
[325295063,1714684267118,-500.0,0.00030684,2]
[325295064,1714684267128,-594.8,0.00030684,2]
[325295065,1714684267141,-986.53,0.00030684,2]
[325295066,1714684267151,-500.0,0.00030684,2]
[325295067,1714684267162,-607.66431596,0.00030684,2]
[325295068,1714684267175,-1138.56,0.00030684,2]
[325295069,1714684267185,-500.0,0.00030684,2]
[325295070,1714684267195,-500.0,0.00030684,2]
[325295071,1714684267206,-500.0,0.00030684,2]
[325295072,1714684267218,-349.88704213,0.00030684,2]
[325295073,1714684267229,-800.93,0.00030684,2]
[325295074,1714684267238,-1087.13,0.00030684,2]
[325295075,1714684267247,-500.0,0.00030684,2]
[325295076,1714684267257,-500.0,0.00030684,2]
[325295077,1714684267266,-927.55,0.00030684,2]
[325295078,1714684267275,-500.0,0.00030684,2]
[325295079,1714684267284,-500.0,0.00030684,2]
[325295080,1714684267297,-500.0,0.00030684,2]
[325295081,1714684267307,-500.0,0.00030684,2]
[325295082,1714684267316,-500.0,0.00030684,2]
[325295083,1714684267325,-480.98444346,0.00030684,2]
[325295084,1714684267335,-500.0,0.00030684,2]
[325295085,1714684267346,-500.0,0.00030684,2]
[325295086,1714684267356,-756.3,0.00030684,2]
[325295087,1714684267366,-500.0,0.00030684,2]
[325295088,1714684267375,-500.0,0.00030684,2]
[325295089,1714684267385,-500.0,0.00030684,2]
[325295090,1714684267395,-500.0,0.00030684,2]
[325295091,1714684267405,-500.0,0.00030684,2]
[325295092,1714684267414,-500.0,0.00030684,2]
[325295093,1714684267424,-500.0,0.00030684,2]
[325295094,1714684267433,-500.0,0.00030684,2]
[325295095,1714684267443,-500.0,0.00030684,2]
[325295096,1714684267452,-500.0,0.00030684,2]
[325295097,1714684267462,-698.43,0.00030684,2]
[325295098,1714684267471,-500.0,0.00030684,2]
[325295099,1714684267481,-500.0,0.00030684,2]
[325295100,1714684267490,-500.0,0.00030684,2]
[325295101,1714684267500,-1301.48,0.00030684,2]
[325295102,1714684267509,-500.0,0.00030684,2]
[325295103,1714684267519,-788.54,0.00030684,2]
[325295104,1714684267528,-500.0,0.00030684,2]
[325295105,1714684267539,-605.5,0.00030684,2]
[325295106,1714684267548,-1056.73,0.00030684,2]
[325295107,1714684267557,-719.4,0.00030684,2]
[325295108,1714684267567,-500.0,0.00030684,2]
[325295109,1714684267576,-500.0,0.00030684,2]
[325295110,1714684267586,-500.0,0.00030684,2]
[325295111,1714684267595,-500.0,0.00030684,2]
[325295112,1714684267604,-500.0,0.00030684,2]
[325295113,1714684267615,-784.9,0.00030684,2]
[325295114,1714684267624,-1212.05,0.00030684,2]
[325295115,1714684267634,-500.0,0.00030684,2]
[325295116,1714684267644,-1047.97,0.00030684,2]
[325295117,1714684267654,-500.0,0.00030684,2]
[325295118,1714684267663,-500.0,0.00030684,2]
[325295119,1714684267673,-925.06,0.00030684,2]
[325295120,1714684267683,-584.27,0.00030684,2]
[325295121,1714684267693,-500.0,0.00030684,2]
[325295122,1714684267702,-514.37,0.00030684,2]
[325295123,1714684267712,-500.0,0.00030684,2]
[325295124,1714684267722,-892.8,0.00030684,2]
[325295125,1714684267731,-778.33,0.00030684,2]
[325295126,1714684267741,-500.0,0.00030684,2]
[325295127,1714684267751,-960.65,0.00030684,2]
[325295128,1714684267761,-868.71,0.00030684,2]
[325295129,1714684267771,-500.0,0.00030684,2]
[325295130,1714684267780,-702.37,0.00030684,2]
[325295131,1714684267792,-724.12,0.00030684,2]
[325295132,1714684267802,-500.0,0.00030684,2]
[325295133,1714684267812,-1418.56,0.00030684,2]
[325295134,1714684267822,-500.0,0.00030684,2]
[325295135,1714684267832,-500.0,0.00030684,2]
[325295136,1714684267842,-500.0,0.00030684,2]
[325295137,1714684267852,-500.0,0.00030684,2]
[325295138,1714684267862,-500.0,0.00030684,2]
[325295139,1714684267873,-618.46,0.00030684,2]
[325295140,1714684267884,-500.0,0.00030684,2]
[325295141,1714684267895,-1231.89,0.00030684,2]
[325295142,1714684267904,-500.0,0.00030684,2]
[325295143,1714684267916,-500.0,0.00030684,2]
[325295144,1714684267926,-918.84,0.00030684,2]
[325295145,1714684267936,-500.0,0.00030684,2]
[325295146,1714684267946,-775.65,0.00030684,2]
[325295147,1714684267956,-757.58,0.00030684,2]
[325295148,1714684267968,-629.99,0.00030684,2]
[325295149,1714684267977,-629.34,0.00030684,2]
[325295150,1714684267987,-558.49,0.00030684,2]
[325295151,1714684267997,-1528.38,0.00030684,2]
[325295152,1714684268007,-500.0,0.00030684,2]
[325295153,1714684268016,-523.24,0.00030684,2]
[325295154,1714684268027,-651.04,0.00030684,2]
[325295155,1714684268036,-1177.49,0.00030684,2]
[325295156,1714684268047,-500.0,0.00030684,2]
[325295157,1714684268057,-500.0,0.00030684,2]
[325295158,1714684268066,-500.0,0.00030684,2]
[325295159,1714684268076,-500.0,0.00030684,2]
[325295160,1714684268085,-500.0,0.00030684,2]
[325295161,1714684268094,-1015.49,0.00030684,2]
[325295162,1714684268104,-981.66,0.00030684,2]
[325295163,1714684268114,-500.0,0.00030684,2]
[325295164,1714684268128,-500.0,0.00030684,2]
[325295165,1714684268138,-500.0,0.00030684,2]
[325295166,1714684268147,-500.0,0.00030684,2]
[325295167,1714684268157,-580.33,0.00030684,2]
[325295168,1714684268170,-541.71,0.00030684,2]
[325295169,1714684268180,-500.0,0.00030684,2]
[325295170,1714684268191,-916.82,0.00030684,2]
[325295171,1714684268200,-843.53,0.00030684,2]
[325295172,1714684268212,-660.58,0.00030684,2]
[325295173,1714684268222,-550.15,0.00030684,2]
[325295174,1714684268231,-774.98,0.00030684,2]
[325295175,1714684268241,-1352.78,0.00030684,2]
[325295176,1714684268251,-702.88,0.00030684,2]
[325295177,1714684268261,-1216.47,0.00030684,2]
[325295178,1714684268270,-1653.56,0.00030684,2]
[325295179,1714684268280,-1049.81,0.00030684,2]
[325295180,1714684268292,-280.64359812,0.00030684,2]
[325295181,1714684268302,-500.0,0.00030684,2]
[325295182,1714684268312,-574.62,0.00030684,2]
[325295183,1714684268322,-568.38,0.00030684,2]
[325295184,1714684268332,-500.0,0.00030684,2]
[325295185,1714684268342,-545.78,0.00030684,2]
[325295186,1714684268352,-1348.11,0.00030684,2]
[325295187,1714684268362,-500.0,0.00030684,2]
[325295188,1714684268371,-1667.74,0.00030684,2]
[325295189,1714684268381,-1247.95,0.00030684,2]
[325295190,1714684268390,-1538.81,0.00030684,2]
[325295191,1714684268400,-500.0,0.00030684,2]
[325295192,1714684268410,-500.0,0.00030684,2]
[325295193,1714684268420,-564.36,0.00030684,2]
[325295194,1714684268429,-500.0,0.00030684,2]
[325295195,1714684268439,-1357.49,0.00030684,2]
[325295196,1714684268448,-1054.09,0.00030684,2]
[325295197,1714684268457,-500.0,0.00030684,2]
[325295198,1714684268467,-500.0,0.00030684,2]
[325295199,1714684268477,-859.74,0.00030684,2]
[325295200,1714684268487,-1999.02,0.00030684,2]
[325295201,1714684268497,-500.0,0.00030684,2]
[325295202,1714684268506,-500.0,0.00030684,2]
[325295203,1714684268517,-500.0,0.00030684,2]
[325295204,1714684268527,-1621.28,0.00030684,2]
[325295205,1714684268536,-1910.59,0.00030684,2]
[325295206,1714684268547,-683.57,0.00030684,2]
[325295207,1714684268557,-1479.23,0.00030684,2]
[325295208,1714684268566,-500.0,0.00030684,2]
[325295209,1714684268576,-545.18,0.00030684,2]
[325295210,1714684268585,-500.0,0.00030684,2]
[325295211,1714684268595,-500.0,0.00030684,2]
[325295212,1714684268605,-500.0,0.00030684,2]
[325295213,1714684268615,-500.0,0.00030684,2]
[325295214,1714684268624,-766.86,0.00030684,2]
[325295215,1714684268634,-725.03,0.00030684,2]
[325295216,1714684268643,-760.14,0.00030684,2]
[325295217,1714684268653,-500.0,0.00030684,2]
[325295218,1714684268662,-508.30381078,0.00030684,2]
[325295219,1714684268671,-2350.42,0.00030684,2]
[325295220,1714684268681,-584.42,0.00030684,2]
[325295221,1714684268691,-500.0,0.00030684,2]
[325295222,1714684268701,-500.0,0.00030684,2]
[325295223,1714684268711,-500.0,0.00030684,2]
[325295224,1714684268721,-500.0,0.00030684,2]
[325295225,1714684268730,-1429.38,0.00030684,2]
[325295226,1714684268740,-804.69,0.00030684,2]
[325295227,1714684268750,-1905.44,0.00030684,2]
[325295228,1714684268760,-500.0,0.00030684,2]
[325295229,1714684268770,-836.55,0.00030684,2]
[325295230,1714684268780,-898.08,0.00030684,2]
[325295231,1714684268790,-500.0,0.00030684,2]
[325295232,1714684268800,-709.45,0.00030684,2]
[325295233,1714684268811,-373.35797674,0.00030684,2]
[325295234,1714684268822,-845.87,0.00030684,2]
[325295235,1714684268831,-500.0,0.00030684,2]
[325295236,1714684268841,-500.0,0.00030684,2]
[325295237,1714684268851,-500.0,0.00030684,2]
[325295238,1714684268861,-1054.68,0.00030684,2]
[325295239,1714684268870,-517.0429451,0.00030684,2]
[325295240,1714684268880,-441.4066167,0.00030684,2]
[325295241,1714684268890,-1356.15,0.00030684,2]
[325295242,1714684268899,-644.06,0.00030684,2]
[325295243,1714684268909,-1895.04,0.00030684,2]
[325295244,1714684268919,-933.13,0.00030684,2]
[325295245,1714684268930,-500.0,0.00030684,2]
[325295246,1714684268940,-971.92,0.00030684,2]
[325295247,1714684268949,-500.0,0.00030684,2]
[325295248,1714684268960,-500.0,0.00030684,2]
[325295249,1714684268969,-1106.89,0.00030684,2]
[325295250,1714684268979,-1184.35,0.00030684,2]
[325295251,1714684268989,-1125.77,0.00030684,2]
[325295252,1714684268999,-500.0,0.00030684,2]
[325295253,1714684269009,-1223.4,0.00030684,2]
[325295254,1714684269019,-705.8,0.00030684,2]
[325295255,1714684269028,-1264.44,0.00030684,2]
[325295256,1714684269040,-583.59,0.00030684,2]
[325295257,1714684269050,-500.0,0.00030684,2]
[325295258,1714684269060,-500.0,0.00030684,2]
[325295259,1714684269070,-1478.84,0.00030684,2]
[325295260,1714684269080,-889.24,0.00030684,2]
[325295261,1714684269090,-500.0,0.00030684,2]
[325295262,1714684269099,-500.0,0.00030684,2]
[325295263,1714684269109,-500.0,0.00030684,2]
[325295264,1714684269120,-782.31,0.00030684,2]
[325295265,1714684269132,-744.18,0.00030684,2]
[325295266,1714684269143,-778.24,0.00030684,2]
[325295267,1714684269153,-2247.9,0.00030684,2]
[325295268,1714684269164,-545.5,0.00030684,2]
[325295269,1714684269175,-575.05,0.00030684,2]
[325295270,1714684269185,-864.58,0.00030684,2]
[325295271,1714684269194,-500.0,0.00030684,2]
[325295272,1714684269204,-1849.43,0.00030684,2]
[325295273,1714684269217,-923.01,0.00030684,2]
[325295274,1714684269228,-949.37,0.00030684,2]
[325295275,1714684269238,-500.0,0.00030684,2]
[325295276,1714684269247,-500.0,0.00030684,2]
[325295277,1714684269257,-500.0,0.00030684,2]
[325295278,1714684269267,-1802.54,0.00030684,2]
[325295279,1714684269277,-561.47,0.00030684,2]
[325295280,1714684269288,-887.44,0.00030684,2]
[325295281,1714684269531,-938.57,0.00030684,2]
[325295282,1714684269545,-500.0,0.00030684,2]
[325295283,1714684269555,-500.0,0.00030684,2]
[325295284,1714684269564,-500.0,0.00030684,2]
[325295285,1714684269573,-500.0,0.00030684,2]
[325295286,1714684269582,-500.0,0.00030684,2]
[325295287,1714684269591,-1273.62,0.00030684,2]
[325295288,1714684269601,-500.0,0.00030684,2]
[325295289,1714684269610,-500.0,0.00030684,2]
[325295290,1714684269620,-1063.9,0.00030684,2]
[325295291,1714684269629,-500.0,0.00030684,2]
[325295292,1714684269638,-593.64,0.00030684,2]
[325295293,1714684269647,-884.24,0.00030684,2]
[325295294,1714684269656,-1373.23,0.00030684,2]
[325295295,1714684269666,-1261.29,0.00030684,2]
[325295296,1714684269675,-982.94,0.00030684,2]
[325295297,1714684269684,-413.33316011,0.00030684,2]
[325295298,1714684269693,-1087.64,0.00030684,2]
[325295299,1714684269702,-717.7,0.00030684,2]
[325295300,1714684269712,-500.0,0.00030684,2]
[325295301,1714684269721,-500.0,0.00030684,2]
[325295302,1714684269731,-633.72,0.00030684,2]
[325295303,1714684269740,-500.0,0.00030684,2]
[325295304,1714684269749,-539.85,0.00030684,2]
[325295305,1714684269759,-765.2,0.00030684,2]
[325295306,1714684269768,-876.95,0.00030684,2]
[325295307,1714684269777,-761.24,0.00030684,2]
[325295308,1714684269793,-1007.68,0.00030684,2]
[325295309,1714684269802,-553.37,0.00030684,2]
[325295310,1714684269811,-1940.06,0.00030684,2]
[325295311,1714684269821,-571.81,0.00030684,2]
[325295312,1714684269830,-500.0,0.00030684,2]
[325295313,1714684269840,-500.0,0.00030684,2]
[325295314,1714684269850,-500.0,0.00030684,2]
[325295315,1714684269859,-500.0,0.00030684,2]
[325295316,1714684269869,-500.0,0.00030684,2]
[325295317,1714684269878,-1045.5,0.00030684,2]
[325295318,1714684269888,-1357.48,0.00030684,2]
[325295319,1714684269897,-500.0,0.00030684,2]
[325295320,1714684269906,-1052.86,0.00030684,2]
[325295321,1714684269916,-500.0,0.00030684,2]
[325295322,1714684269925,-918.66,0.00030684,2]
[325295323,1714684269935,-584.99,0.00030684,2]
[325295324,1714684269944,-1887.28,0.00030684,2]
[325295325,1714684269954,-500.0,0.00030684,2]
[325295326,1714684269963,-500.0,0.00030684,2]
[325295327,1714684269972,-643.29054147,0.00030684,2]
[325295328,1714684269982,-500.0,0.00030684,2]
[325295329,1714684269991,-500.0,0.00030684,2]
[325295330,1714684270000,-506.95,0.00030684,2]
[325295331,1714684270009,-500.0,0.00030684,2]
[325295332,1714684270018,-529.33,0.00030684,2]
[325295333,1714684270028,-694.6,0.00030684,2]
[325295334,1714684270038,-775.85,0.00030684,2]
[325295335,1714684270048,-500.0,0.00030684,2]
[325295336,1714684270058,-750.55,0.00030684,2]
[325295337,1714684270067,-500.0,0.00030684,2]
[325295338,1714684270077,-500.0,0.00030684,2]
[325295339,1714684270087,-1747.6,0.00030684,2]
[325295340,1714684270097,-500.0,0.00030684,2]
[325295341,1714684270106,-500.0,0.00030684,2]
[325295342,1714684270115,-1070.78,0.00030684,2]
[325295343,1714684270126,-500.0,0.00030684,2]
[325295344,1714684270137,-1018.73,0.00030684,2]
[325295345,1714684270146,-662.86,0.00030684,2]
[325295346,1714684270156,-770.54,0.00030684,2]
[325295347,1714684270170,-544.06,0.00030684,2]
[325295348,1714684270179,-1285.63,0.00030684,2]
[325295349,1714684270189,-895.63,0.00030684,2]
[325295350,1714684270200,-546.86,0.00030684,2]
[325295351,1714684270209,-500.0,0.00030684,2]
[325295352,1714684270219,-500.0,0.00030684,2]
[325295353,1714684270229,-1132.45,0.00030684,2]
[325295354,1714684270239,-500.0,0.00030684,2]
[325295355,1714684270250,-2194.28,0.00030684,2]
[325295356,1714684270260,-500.0,0.00030684,2]
[325295357,1714684270270,-500.0,0.00030684,2]
[325295358,1714684270279,-1031.33,0.00030684,2]
[325295359,1714684270290,-1318.14,0.00030684,2]
[325295360,1714684270299,-500.0,0.00030684,2]
[325295361,1714684270308,-500.0,0.00030684,2]
[325295362,1714684270317,-1157.63,0.00030684,2]
[325295363,1714684270327,-500.0,0.00030684,2]
[325295364,1714684270336,-500.0,0.00030684,2]
[325295365,1714684270346,-500.0,0.00030684,2]
[325295366,1714684270356,-953.39,0.00030684,2]
[325295367,1714684270365,-1247.21,0.00030684,2]
[325295368,1714684270375,-500.0,0.00030684,2]
[325295369,1714684270384,-600.55,0.00030684,2]
[325295370,1714684270394,-1189.47,0.00030684,2]
[325295371,1714684270403,-500.0,0.00030684,2]
[325295372,1714684270413,-500.0,0.00030684,2]
[325295373,1714684270423,-500.0,0.00030684,2]
[325295374,1714684270433,-535.99,0.00030684,2]
[325295375,1714684270442,-946.82,0.00030684,2]
[325295376,1714684270452,-500.0,0.00030684,2]
[325295377,1714684270461,-1219.72,0.00030684,2]
[325295378,1714684270470,-500.0,0.00030684,2]
[325295379,1714684270479,-500.0,0.00030684,2]
[325295380,1714684270489,-500.0,0.00030684,2]
[325295381,1714684270498,-500.0,0.00030684,2]
[325295382,1714684270507,-1094.14,0.00030684,2]
[325295383,1714684270516,-500.0,0.00030684,2]
[325295384,1714684270525,-150.0,0.00030684,2]
[325295385,1714684270536,-500.0,0.00030684,2]
[325295386,1714684270547,-576.94,0.00030684,2]
[325295387,1714684270556,-572.24,0.00030684,2]
[325295388,1714684270566,-500.0,0.00030684,2]
[325295389,1714684270575,-500.0,0.00030684,2]
[325295390,1714684270584,-500.0,0.00030684,2]
[325295391,1714684270593,-522.39852312,0.00030684,2]
[325295392,1714684270603,-2026.8,0.00030684,2]
[325295393,1714684270612,-1557.97,0.00030684,2]
[325295394,1714684270622,-679.15,0.00030684,2]
[325295395,1714684270631,-743.42,0.00030684,2]
[325295396,1714684270641,-1206.68,0.00030684,2]
[325295397,1714684270650,-763.74,0.00030684,2]
[325295398,1714684270659,-966.4,0.00030684,2]
[325295399,1714684270669,-1519.58,0.00030684,2]
[325295400,1714684270678,-932.93,0.00030684,2]
[325295401,1714684270687,-743.87,0.00030684,2]
[325295402,1714684270697,-524.81,0.00030684,2]
[325295403,1714684270706,-1288.75,0.00030684,2]
[325295404,1714684270716,-530.40410839,0.00030684,2]
[325295405,1714684270725,-510.21,0.00030684,2]
[325295406,1714684270734,-1205.07,0.00030684,2]
[325295407,1714684270743,-532.6,0.00030684,2]
[325295408,1714684270752,-1291.0,0.00030684,2]
[325295409,1714684270762,-841.43,0.00030684,2]
[325295410,1714684270771,-980.31,0.00030684,2]
[325295411,1714684270780,-504.11729366,0.00030684,2]
[325295412,1714684270790,-953.76,0.00030684,2]
[325295413,1714684270799,-969.83,0.00030684,2]
[325295414,1714684270808,-1572.57,0.00030684,2]
[325295415,1714684270817,-2244.4,0.00030684,2]
[325295416,1714684270827,-663.69,0.00030684,2]
[325295417,1714684270836,-1403.75,0.00030684,2]
[325295418,1714684270846,-500.0,0.00030684,2]
[325295419,1714684270855,-500.0,0.00030684,2]
[325295420,1714684270864,-500.0,0.00030684,2]
[325295421,1714684270874,-2146.81,0.00030684,2]
[325295422,1714684270884,-500.0,0.00030684,2]
[325295423,1714684270893,-500.0,0.00030684,2]
[325295424,1714684270902,-527.55,0.00030684,2]
[325295425,1714684270911,-500.0,0.00030684,2]
[325295426,1714684270920,-659.56,0.00030684,2]
[325295427,1714684270930,-500.0,0.00030684,2]
[325295428,1714684270939,-500.0,0.00030684,2]
[325295429,1714684270948,-648.05,0.00030684,2]
[325295430,1714684270958,-500.0,0.00030684,2]
[325295431,1714684270967,-500.0,0.00030684,2]
[325295432,1714684270976,-568.8,0.00030684,2]
[325295433,1714684270985,-2153.09,0.00030684,2]
[325295434,1714684270995,-1509.05,0.00030684,2]
[325295435,1714684271004,-1351.42,0.00030684,2]
[325295436,1714684271013,-219.962182,0.00030684,7]
[325295437,1714684271022,-1194.38,0.00030684,2]
[325295438,1714684271031,-500.0,0.00030684,2]
[325295439,1714684271042,-1578.24,0.00030684,2]
[325295440,1714684271051,-650.39,0.00030684,2]
[325295441,1714684271060,-1351.38,0.00030684,2]
[325295442,1714684271070,-610.87,0.00030684,2]
[325295443,1714684271079,-798.34,0.00030684,2]
[325295444,1714684271088,-710.61,0.00030684,2]
[325295445,1714684271098,-726.75,0.00030684,2]
[325295446,1714684271108,-753.7,0.00030684,2]
[325295447,1714684271117,-500.0,0.00030684,2]
[325295448,1714684271128,-641.08886585,0.00030684,2]
[325295449,1714684271142,-696.02,0.00030684,2]
[325295450,1714684271151,-500.0,0.00030684,2]
[325295451,1714684271160,-500.0,0.00030684,2]
[325295452,1714684271170,-850.38,0.00030684,2]
[325295453,1714684271180,-978.78,0.00030684,2]
[325295454,1714684271190,-676.77,0.00030684,2]
[325295455,1714684271199,-561.19,0.00030684,2]
[325295456,1714684271209,-612.56,0.00030684,2]
[325295457,1714684271219,-500.0,0.00030684,2]
[325295458,1714684271228,-1226.22,0.00030684,2]
[325295459,1714684271237,-500.0,0.00030684,2]
[325295460,1714684271247,-500.0,0.00030684,2]
[325295461,1714684271256,-2634.87,0.00030684,2]
[325295462,1714684271266,-790.2,0.00030684,2]
[325295463,1714684271276,-500.0,0.00030684,2]
[325295464,1714684271285,-500.0,0.00030684,2]
[325295465,1714684271295,-500.0,0.00030684,2]
[325295466,1714684271304,-500.0,0.00030684,2]
[325295467,1714684271314,-546.21,0.00030684,2]
[325295468,1714684271323,-500.0,0.00030684,2]
[325295469,1714684271333,-1090.27,0.00030684,2]
[325295470,1714684271342,-500.0,0.00030684,2]
[325295471,1714684271351,-699.79,0.00030684,2]
[325295472,1714684271360,-571.9,0.00030684,2]
[325295473,1714684271369,-900.35,0.00030684,2]
[325295474,1714684271379,-560.03,0.00030684,2]
[325295475,1714684271387,-546.73,0.00030684,2]
[325295476,1714684271396,-500.0,0.00030684,2]
[325295477,1714684271406,-500.0,0.00030684,2]
[325295478,1714684271415,-500.0,0.00030684,2]
[325295479,1714684271424,-500.0,0.00030684,2]
[325295480,1714684271433,-987.57,0.00030684,2]
[325295481,1714684271442,-500.0,0.00030684,2]
[325295482,1714684271451,-4041.83,0.00030684,2]
[325295483,1714684271460,-1364.29,0.00030684,2]
[325295484,1714684271470,-628.78,0.00030684,2]
[325295485,1714684271479,-820.78,0.00030684,2]
[325295486,1714684271488,-500.0,0.00030684,2]
[325295487,1714684271497,-500.0,0.00030684,2]